[Event "Masters Tournament (MTO)"]
[Site "Biel, Switzerland"]
[Date "2026.07.18"]
[Round "6.5"]
[White "Balabayeva, Xeniya"]
[Black "Baenziger, Fabian"]
[Result "1/2-1/2"]
[TimeControl "100+30+30sec/move"]
[WhiteTitle "-"]
[BlackTitle "-"]
[WhiteFideId "13719688"]
[BlackFideId "1330110"]
[WhiteElo "2302"]
[BlackElo "2435"]

1. d4 {[%clk 01:40:58]} e6 {[%clk 01:40:41]} {[%emt 00:00:20]} 2. c4 {[%clk
01:41:08]} {[%emt 00:00:19]} Nf6 {[%clk 01:40:56]} {[%emt 00:00:15]} 3. Nc3
{[%clk 01:41:25]} {[%emt 00:00:13]} Bb4 {[%clk 01:41:06]} {[%emt 00:00:20]} 4.
e3 {[%clk 01:41:18]} {[%emt 00:00:37]} O-O {[%clk 01:40:23]} {[%emt 00:01:13]}
5. Bd3 {[%clk 01:41:38]} {[%emt 00:00:11]} d5 {[%clk 01:38:02]} {[%emt
00:02:50]} 6. a3 {[%clk 01:40:11]} {[%emt 00:01:57]} Bxc3+ {[%clk 01:37:00]}
{[%emt 00:01:32]} 7. bxc3 {[%clk 01:40:35]} {[%emt 00:00:07]} dxc4 {[%clk
01:35:55]} {[%emt 00:01:35]} 8. Bxc4 {[%clk 01:40:59]} {[%emt 00:00:06]} c5
{[%clk 01:35:40]} {[%emt 00:00:44]} 9. Ne2 {[%clk 01:38:49]} {[%emt 00:02:40]}
Qc7 {[%clk 01:32:44]} {[%emt 00:03:26]} 10. Ba2 {[%clk 01:39:07]} {[%emt
00:00:12]} b6 {[%clk 01:28:11]} {[%emt 00:05:02]} 11. O-O {[%clk 01:38:46]}
{[%emt 00:00:51]} Rd8 {[%clk 01:28:11]} {[%emt 00:00:28]} 12. Re1 {[%clk
01:32:53]} {[%emt 00:06:25]} Nc6 {[%clk 01:21:44]} {[%emt 00:06:57]} 13. Ng3
{[%clk 01:26:17]} {[%emt 00:07:06]} Ba6 {[%clk 01:17:06]} {[%emt 00:05:09]} 14.
Rb1 {[%clk 01:15:06]} {[%emt 00:11:41]} Rac8 {[%clk 01:13:32]} {[%emt
00:04:04]} 15. Rb2 {[%clk 01:09:48]} {[%emt 00:05:48]} cxd4 {[%clk 00:57:31]}
{[%emt 00:16:30]} 16. cxd4 {[%clk 01:06:50]} {[%emt 00:03:28]} Ne5 {[%clk
00:54:03]} {[%emt 00:03:59]} 17. Rd2 {[%clk 00:49:11]} {[%emt 00:18:09]} Nd3
{[%clk 00:53:36]} {[%emt 00:00:57]} 18. Rxd3 {[%clk 00:48:53]} {[%emt
00:00:47]} Qxc1 {[%clk 00:53:57]} {[%emt 00:00:09]} 19. Qxc1 {[%clk 00:48:12]}
{[%emt 00:01:12]} Rxc1 {[%clk 00:54:19]} {[%emt 00:00:08]} 20. Rxc1 {[%clk
00:48:39]} {[%emt 00:00:03]} Bxd3 {[%clk 00:54:43]} {[%emt 00:00:06]} 21. f3
{[%clk 00:45:57]} {[%emt 00:03:12]} Kf8 {[%clk 00:50:33]} {[%emt 00:04:39]} 22.
Kf2 {[%clk 00:43:52]} {[%emt 00:02:35]} Ba6 {[%clk 00:45:01]} {[%emt 00:06:03]}
23. Ne2 {[%clk 00:38:45]} {[%emt 00:05:37]} Rc8 {[%clk 00:42:10]} {[%emt
00:03:20]} 24. Rxc8+ {[%clk 00:37:25]} Bxc8 {[%clk 00:42:36]} {[%emt 00:01:54]}
25. Nc3 {[%clk 00:37:49]} {[%emt 00:00:06]} Ke7 {[%clk 00:42:34]} {[%emt
00:00:32]} 26. e4 {[%clk 00:34:49]} {[%emt 00:03:30]} Ne8 {[%clk 00:39:08]}
{[%emt 00:03:56]} 27. Ke3 {[%clk 00:34:45]} {[%emt 00:00:34]} Nc7 {[%clk
00:39:15]} {[%emt 00:00:23]} 28. f4 {[%clk 00:29:51]} {[%emt 00:05:24]} f5
{[%clk 00:37:56]} {[%emt 00:01:49]} 29. e5 {[%clk 00:29:15]} {[%emt 00:01:07]}
Bb7 {[%clk 00:38:19]} {[%emt 00:00:06]} 30. g3 {[%clk 00:29:37]} {[%emt
00:00:08]} Bc6 {[%clk 00:38:23]} {[%emt 00:00:26]} 31. Bb3 {[%clk 00:29:20]}
{[%emt 00:00:47]} Bb7 {[%clk 00:38:02]} {[%emt 00:00:51]} 1/2-1/2

[Event "Masters Tournament (MTO)"]
[Site "Biel, Switzerland"]
[Date "2026.07.18"]
[Round "6.6"]
[White "Yasaswi, Krishna Bommi"]
[Black "Savitha, Shri B"]
[Result "0-1"]
[TimeControl "100+30+30sec/move"]
[WhiteTitle "-"]
[BlackTitle "-"]
[WhiteFideId "33368783"]
[BlackFideId "35061887"]
[WhiteElo "2085"]
[BlackElo "2368"]

1. d4 {[%clk 01:40:57]} {[%emt 00:00:01]} Nf6 {[%clk 01:33:25]} {[%emt
00:07:36]} 2. Nf3 {[%clk 01:41:19]} {[%emt 00:00:08]} g6 {[%clk 01:33:24]}
{[%emt 00:00:31]} 3. Bf4 {[%clk 01:41:41]} {[%emt 00:00:07]} Bg7 {[%clk
01:33:25]} {[%emt 00:00:29]} 4. e3 {[%clk 01:42:04]} {[%emt 00:00:07]} O-O
{[%clk 01:33:49]} {[%emt 00:00:06]} 5. h3 {[%clk 01:42:31]} {[%emt 00:00:04]}
c5 {[%clk 01:33:44]} {[%emt 00:00:35]} 6. c3 {[%clk 01:42:50]} {[%emt
00:00:11]} Qb6 {[%clk 01:34:07]} {[%emt 00:00:07]} 7. Qb3 {[%clk 01:38:13]}
{[%emt 00:05:08]} d6 {[%clk 01:34:20]} {[%emt 00:00:17]} 8. Nbd2 {[%clk
01:37:28]} {[%emt 00:01:14]} Be6 {[%clk 01:34:42]} {[%emt 00:00:09]} 9. Qc2
{[%clk 01:35:19]} {[%emt 00:02:39]} Nc6 {[%clk 01:32:45]} {[%emt 00:02:27]} 10.
dxc5 {[%clk 01:28:36]} {[%emt 00:07:14]} Qxc5 {[%clk 01:27:20]} {[%emt
00:05:55]} 11. Nb3 {[%clk 01:23:05]} {[%emt 00:06:00]} Bxb3 {[%clk 01:22:35]}
{[%emt 00:05:15]} 12. Qxb3 {[%clk 01:13:04]} {[%emt 00:10:32]} Nd5 {[%clk
01:22:17]} {[%emt 00:00:48]} 13. Rd1 {[%clk 01:08:03]} {[%emt 00:05:31]} Nxf4
{[%clk 01:20:45]} {[%emt 00:02:02]} 14. exf4 {[%clk 01:08:25]} {[%emt
00:00:08]} Qf5 {[%clk 01:14:16]} {[%emt 00:06:59]} 15. Qa4 {[%clk 00:59:39]}
{[%emt 00:09:16]} a6 {[%clk 01:10:49]} {[%emt 00:03:58]} 16. Bd3 {[%clk
00:53:37]} {[%emt 00:06:31]} Qe6+ {[%clk 01:09:58]} {[%emt 00:01:20]} 17. Qe4
{[%clk 00:51:14]} {[%emt 00:02:53]} Qxa2 {[%clk 01:07:43]} {[%emt 00:02:45]} 18.
Qe2 {[%clk 00:50:31]} {[%emt 00:01:13]} Qa5 {[%clk 00:54:55]} {[%emt 00:13:18]}
19. O-O {[%clk 00:48:31]} {[%emt 00:02:30]} e6 {[%clk 00:53:52]} {[%emt
00:01:33]} 20. Bb1 {[%clk 00:39:31]} {[%emt 00:09:30]} Qc7 {[%clk 00:53:52]}
{[%emt 00:00:30]} 21. g4 {[%clk 00:33:15]} {[%emt 00:06:45]} Rfe8 {[%clk
00:50:06]} {[%emt 00:04:16]} 22. Qd2 {[%clk 00:31:09]} {[%emt 00:02:37]} Rad8
{[%clk 00:49:02]} {[%emt 00:01:34]} 23. f5 {[%clk 00:26:26]} {[%emt 00:05:14]}
exf5 {[%clk 00:45:05]} {[%emt 00:04:27]} 24. gxf5 {[%clk 00:26:48]} {[%emt
00:00:07]} Ne5 {[%clk 00:44:15]} {[%emt 00:01:20]} 25. Nd4 {[%clk 00:24:07]}
{[%emt 00:03:11]} Qe7 {[%clk 00:37:17]} {[%emt 00:07:29]} 26. Qf4 {[%clk
00:20:09]} {[%emt 00:04:28]} Qf6 {[%clk 00:35:02]} {[%emt 00:02:45]} 27. Rfe1
{[%clk 00:17:03]} {[%emt 00:03:35]} d5 {[%clk 00:29:37]} {[%emt 00:05:56]} 28.
Re3 {[%clk 00:12:37]} {[%emt 00:04:56]} Nc4 {[%clk 00:29:23]} {[%emt 00:00:44]}
29. Rxe8+ {[%clk 00:12:03]} Rxe8 {[%clk 00:29:46]} {[%emt 00:01:11]} 30. b3
{[%clk 00:11:51]} {[%emt 00:00:42]} Nd6 {[%clk 00:28:37]} {[%emt 00:01:38]} 31.
Kg2 {[%clk 00:10:02]} {[%emt 00:02:19]} Kh8 {[%clk 00:21:02]} {[%emt 00:08:06]}
32. Nf3 {[%clk 00:05:08]} {[%emt 00:05:24]} Nb5 {[%clk 00:20:05]} {[%emt
00:01:27]} 33. Rxd5 {[%clk 00:02:34]} {[%emt 00:03:04]} Nxc3 {[%clk 00:07:35]}
{[%emt 00:13:01]} 34. Rd6 {[%clk 00:02:58]} {[%emt 00:00:05]} Ne2 {[%clk
00:07:59]} {[%emt 00:00:06]} 35. Qd2 {[%clk 00:03:04]} {[%emt 00:00:23]} Qc3
{[%clk 00:04:21]} {[%emt 00:04:09]} 36. Rd8 {[%clk 00:02:29]} {[%emt 00:01:05]}
Qc6 {[%clk 00:04:50]} {[%emt 00:00:01]} 37. Rxe8+ {[%clk 00:02:08]} {[%emt
00:00:51]} Qxe8 {[%clk 00:05:19]} {[%emt 00:00:01]} 38. fxg6 {[%clk 00:02:21]}
{[%emt 00:00:17]} hxg6 {[%emt 00:01:12]} 39. Bd3 {[%clk 00:01:58]} Nc3 {[%clk
00:05:51]} {[%emt 00:00:07]} 40. Qf4 {[%clk 00:01:59]} {[%emt 00:00:31]} Kg8
{[%clk 00:04:40]} {[%emt 00:01:41]} 41. Ng5 {[%clk 00:22:42]} {[%emt 00:09:47]}
Bh6 {[%clk 00:26:29]} {[%emt 00:08:40]} 42. h4 {[%clk 00:16:08]} {[%emt
00:07:05]} Bxg5 {[%clk 00:19:44]} {[%emt 00:07:15]} 43. hxg5 {[%clk 00:16:04]}
{[%emt 00:00:34]} Nd5 {[%clk 00:17:57]} {[%emt 00:02:17]} 44. Qd6 {[%clk
00:11:22]} {[%emt 00:05:11]} Qe6 {[%clk 00:18:12]} {[%emt 00:00:15]} 45. Qg3
{[%clk 00:07:49]} {[%emt 00:04:03]} b5 {[%clk 00:18:12]} {[%emt 00:00:30]} 46.
Kf1 {[%clk 00:04:53]} {[%emt 00:03:26]} Nb4 {[%clk 00:14:27]} {[%emt 00:04:15]}
47. Be2 {[%clk 00:04:08]} {[%emt 00:01:15]} Nc6 {[%clk 00:14:52]} {[%emt
00:00:05]} 48. Bg4 {[%clk 00:02:26]} {[%emt 00:02:12]} Qe5 {[%clk 00:12:33]}
{[%emt 00:02:50]} 49. Qxe5 {[%clk 00:01:31]} {[%emt 00:01:24]} Nxe5 {[%clk
00:13:01]} {[%emt 00:00:01]} 50. Bc8 {[%clk 00:01:33]} {[%emt 00:00:29]} a5
{[%clk 00:13:26]} {[%emt 00:00:05]} 51. Ke2 {[%clk 00:01:43]} {[%emt 00:00:19]}
a4 {[%clk 00:13:04]} {[%emt 00:00:53]} 52. bxa4 {[%clk 00:01:59]} {[%emt
00:00:13]} bxa4 {[%clk 00:13:29]} {[%emt 00:00:04]} 53. Bb7 {[%clk 00:02:01]}
{[%emt 00:00:28]} Kf8 {[%clk 00:11:42]} {[%emt 00:02:18]} 54. Bd5 {[%clk
00:02:00]} {[%emt 00:00:31]} Ke7 {[%clk 00:11:38]} {[%emt 00:00:34]} 55. Ke3
{[%clk 00:01:01]} {[%emt 00:01:28]} a3 {[%clk 00:11:01]} {[%emt 00:01:07]} 56.
Ke4 {[%clk 00:00:57]} {[%emt 00:00:34]} Nc6 {[%clk 00:11:22]} {[%emt 00:00:10]}
0-1

[Event "Masters Tournament (MTO)"]
[Site "Biel, Switzerland"]
[Date "2026.07.18"]
[Round "6.7"]
[White "Nguyen, Thi Mai Hung"]
[Black "Ganguly, Surya Shekhar"]
[Result "1/2-1/2"]
[TimeControl "100+30+30sec/move"]
[WhiteTitle "-"]
[BlackTitle "-"]
[WhiteFideId "12401676"]
[BlackFideId "5002150"]
[WhiteElo "2260"]
[BlackElo "2578"]

1. d4 {[%clk 01:40:44]} {[%emt 00:00:15]} Nf6 {[%clk 01:40:44]} {[%emt
00:00:17]} 2. Nf3 {[%clk 01:38:33]} {[%emt 00:02:41]} d5 {[%clk 01:41:04]}
{[%emt 00:00:09]} 3. g3 {[%clk 01:38:00]} {[%emt 00:01:03]} c5 {[%clk
01:41:04]} {[%emt 00:00:30]} 4. c3 {[%clk 01:33:33]} {[%emt 00:04:57]} Nc6
{[%clk 01:36:38]} {[%emt 00:04:55]} 5. Bg2 {[%clk 01:32:13]} {[%emt 00:01:51]}
e6 {[%clk 01:31:30]} {[%emt 00:05:38]} 6. O-O {[%clk 01:31:59]} {[%emt
00:00:45]} Be7 {[%clk 01:29:40]} {[%emt 00:02:19]} 7. Nbd2 {[%clk 01:19:31]}
{[%emt 00:12:59]} cxd4 {[%clk 01:26:15]} {[%emt 00:03:54]} 8. cxd4 {[%clk
01:18:47]} {[%emt 00:01:14]} Qb6 {[%clk 01:26:06]} {[%emt 00:00:39]} 9. e3
{[%clk 01:10:03]} {[%emt 00:09:15]} O-O {[%clk 01:26:04]} {[%emt 00:00:31]} 10.
a3 {[%clk 01:05:17]} {[%emt 00:05:17]} a5 {[%clk 01:22:03]} {[%emt 00:04:31]}
11. b3 {[%clk 01:00:20]} {[%emt 00:05:27]} Rd8 {[%clk 01:20:29]} {[%emt
00:02:03]} 12. Bb2 {[%clk 00:56:57]} {[%emt 00:03:53]} Bd7 {[%clk 01:20:42]}
{[%emt 00:00:17]} 13. Ne5 {[%clk 00:56:47]} {[%emt 00:00:40]} Nxe5 {[%clk
01:11:49]} {[%emt 00:09:22]} 14. dxe5 {[%clk 00:56:57]} {[%emt 00:00:22]} Ne4
{[%clk 01:12:06]} {[%emt 00:00:12]} 15. Bd4 {[%clk 00:46:23]} {[%emt 00:11:05]}
Bc5 {[%clk 01:10:41]} {[%emt 00:01:55]} 16. Bxe4 {[%clk 00:44:57]} {[%emt
00:01:55]} Bxd4 {[%clk 01:09:16]} {[%emt 00:01:55]} 17. exd4 {[%clk 00:45:16]}
{[%emt 00:00:12]} dxe4 {[%clk 01:09:40]} {[%emt 00:00:05]} 18. Nc4 {[%clk
00:45:35]} {[%emt 00:00:11]} Qc7 {[%clk 01:07:38]} {[%emt 00:02:31]} 19. Rc1
{[%clk 00:41:27]} {[%emt 00:04:39]} Bc6 {[%clk 01:07:42]} {[%emt 00:00:26]} 20.
Nd6 {[%clk 00:40:41]} {[%emt 00:01:16]} Rxd6 {[%clk 01:06:31]} {[%emt
00:01:40]} 21. exd6 {[%clk 00:41:07]} {[%emt 00:00:06]} Qxd6 {[%clk 01:06:54]}
{[%emt 00:00:07]} 22. a4 {[%clk 00:40:06]} {[%emt 00:01:31]} Rd8 {[%clk
01:05:06]} {[%emt 00:02:17]} 23. Qd2 {[%clk 00:34:40]} {[%emt 00:05:56]} Qxd4
{[%clk 00:55:39]} {[%emt 00:09:57]} 24. Qxd4 {[%clk 00:34:26]} {[%emt
00:00:45]} Rxd4 {[%clk 00:56:03]} {[%emt 00:00:05]} 25. Rfd1 {[%clk 00:31:48]}
{[%emt 00:03:08]} Rxd1+ {[%clk 00:55:08]} {[%emt 00:01:26]} 26. Rxd1 {[%clk
00:32:16]} Kf8 {[%clk 00:53:53]} {[%emt 00:01:45]} 27. Rd8+ {[%clk 00:21:05]}
{[%emt 00:11:41]} Ke7 {[%clk 00:54:16]} {[%emt 00:00:06]} 28. Ra8 {[%clk
00:21:30]} {[%emt 00:00:06]} Bd5 {[%clk 00:54:35]} {[%emt 00:00:11]} 29. Rxa5
{[%clk 00:21:55]} {[%emt 00:00:06]} Bxb3 {[%clk 00:55:00]} {[%emt 00:00:04]} 30.
Ra7 {[%clk 00:21:52]} {[%emt 00:00:33]} Bd5 {[%clk 00:55:24]} {[%emt 00:00:05]}
31. a5 {[%clk 00:22:19]} {[%emt 00:00:05]} Kf6 {[%clk 00:53:08]} {[%emt
00:02:45]} 32. Kf1 {[%clk 00:22:23]} {[%emt 00:00:26]} g5 {[%clk 00:51:20]}
{[%emt 00:02:18]} 33. Ke1 {[%clk 00:18:16]} {[%emt 00:04:37]} Kg6 {[%clk
00:47:17]} {[%emt 00:04:32]} 34. Ke2 {[%emt 00:10:11]} 1/2-1/2

[Event "Masters Tournament (MTO)"]
[Site "Biel, Switzerland"]
[Date "2026.07.18"]
[Round "6.8"]
[White "Kozak, Adam"]
[Black "Ghosh, Diptayan"]
[Result "1/2-1/2"]
[TimeControl "100+30+30sec/move"]
[WhiteTitle "-"]
[BlackTitle "-"]
[WhiteFideId "753246"]
[BlackFideId "5045207"]
[WhiteElo "2531"]
[BlackElo "2554"]

1. e4 {[%clk 01:39:10]} {[%emt 00:01:34]} e5 {[%clk 01:38:29]} {[%emt
00:02:46]} 2. Nf3 {[%clk 01:39:31]} {[%emt 00:00:08]} Nc6 {[%clk 01:38:55]}
{[%emt 00:00:05]} 3. Bc4 {[%clk 01:39:53]} {[%emt 00:00:08]} Nf6 {[%clk
01:38:41]} {[%emt 00:00:43]} 4. d3 {[%clk 01:40:15]} {[%emt 00:00:08]} h6
{[%clk 01:38:51]} {[%emt 00:00:20]} 5. Nc3 {[%clk 01:40:33]} {[%emt 00:00:13]}
Bb4 {[%clk 01:37:46]} {[%emt 00:01:35]} 6. O-O {[%clk 01:40:55]} {[%emt
00:00:08]} Bxc3 {[%clk 01:37:53]} {[%emt 00:00:23]} 7. bxc3 {[%clk 01:41:19]}
{[%emt 00:00:06]} O-O {[%clk 01:38:11]} {[%emt 00:00:12]} 8. Re1 {[%clk
01:41:44]} {[%emt 00:00:04]} d6 {[%clk 01:38:27]} {[%emt 00:00:15]} 9. Bb3
{[%clk 01:42:08]} {[%emt 00:00:06]} Re8 {[%clk 01:37:31]} {[%emt 00:01:26]} 10.
h3 {[%clk 01:42:30]} {[%emt 00:00:08]} Be6 {[%clk 01:37:06]} {[%emt 00:00:55]}
11. Bxe6 {[%clk 01:42:50]} {[%emt 00:00:10]} Rxe6 {[%clk 01:37:31]} {[%emt
00:00:05]} 12. c4 {[%clk 01:43:14]} {[%emt 00:00:07]} Re8 {[%clk 01:32:16]}
{[%emt 00:05:45]} 13. Rb1 {[%clk 01:40:20]} {[%emt 00:03:23]} b6 {[%clk
01:31:11]} {[%emt 00:01:35]} 14. Nh4 {[%clk 01:29:59]} {[%emt 00:10:50]} Nd4
{[%clk 01:17:19]} {[%emt 00:14:23]} 15. Bb2 {[%clk 01:27:40]} {[%emt 00:02:48]}
Ne6 {[%clk 01:13:40]} {[%emt 00:04:10]} 16. Nf5 {[%clk 01:22:47]} {[%emt
00:05:23]} Kh7 {[%clk 01:13:19]} {[%emt 00:00:51]} 17. Bc1 {[%clk 01:14:02]}
{[%emt 00:09:15]} Ng8 {[%clk 01:09:07]} {[%emt 00:04:41]} 18. Rf1 {[%clk
01:09:26]} {[%emt 00:05:07]} Ne7 {[%clk 01:00:37]} {[%emt 00:09:01]} 1/2-1/2

[Event "Masters Tournament (MTO)"]
[Site "Biel, Switzerland"]
[Date "2026.07.18"]
[Round "6.9"]
[White "Aronyak, Ghosh"]
[Black "Pleschke, Julius Jonas"]
[Result "1/2-1/2"]
[TimeControl "100+30+30sec/move"]
[WhiteTitle "-"]
[BlackTitle "-"]
[WhiteFideId "25072846"]
[BlackFideId "54734258"]
[WhiteElo "2549"]
[BlackElo "2280"]

1. d4 {[%clk 01:40:54]} {[%emt 00:00:05]} Nf6 {[%clk 01:40:41]} {[%emt
00:00:18]} 2. Bf4 {[%clk 01:40:34]} {[%emt 00:00:52]} e6 {[%clk 01:39:39]}
{[%emt 00:01:32]} 3. e3 {[%clk 01:40:03]} {[%emt 00:01:01]} b6 {[%clk
01:36:12]} {[%emt 00:03:57]} 4. Nf3 {[%clk 01:37:50]} {[%emt 00:02:43]} Bb7
{[%clk 01:36:17]} {[%emt 00:00:26]} 5. h3 {[%clk 01:35:10]} {[%emt 00:03:09]}
Be7 {[%clk 01:34:19]} {[%emt 00:02:27]} 6. Bd3 {[%clk 01:34:10]} {[%emt
00:01:31]} O-O {[%clk 01:34:09]} {[%emt 00:00:39]} 7. O-O {[%clk 01:34:10]}
{[%emt 00:00:31]} c5 {[%clk 01:33:12]} {[%emt 00:01:27]} 8. c3 {[%clk
01:33:14]} {[%emt 00:01:26]} cxd4 {[%clk 01:30:56]} {[%emt 00:02:46]} 9. exd4
{[%clk 01:33:34]} {[%emt 00:00:11]} d6 {[%clk 01:31:16]} {[%emt 00:00:09]} 10.
Re1 {[%clk 01:33:15]} {[%emt 00:00:50]} Nbd7 {[%clk 01:31:25]} {[%emt
00:00:20]} 11. a4 {[%clk 01:33:06]} {[%emt 00:00:39]} a6 {[%clk 01:31:42]}
{[%emt 00:00:13]} 12. Bh2 {[%clk 01:32:34]} {[%emt 00:01:01]} Qc7 {[%clk
01:30:05]} {[%emt 00:02:07]} 13. Na3 {[%clk 01:32:40]} {[%emt 00:00:25]} Rfe8
{[%clk 01:27:09]} {[%emt 00:03:25]} 14. Bf1 {[%clk 01:31:02]} {[%emt 00:02:09]}
Bc6 {[%clk 01:23:45]} {[%emt 00:03:54]} 15. Nc2 {[%clk 01:25:54]} {[%emt
00:05:38]} Qb7 {[%clk 01:09:31]} {[%emt 00:14:44]} 16. Nd2 {[%clk 01:21:22]}
{[%emt 00:05:02]} Qc7 {[%clk 00:58:45]} {[%emt 00:11:15]} 17. c4 {[%clk
01:05:28]} {[%emt 00:16:25]} e5 {[%clk 00:51:18]} {[%emt 00:07:56]} 18. Nb1
{[%clk 01:00:38]} {[%emt 00:05:21]} Bf8 {[%clk 00:50:32]} {[%emt 00:01:17]} 19.
Nc3 {[%clk 00:59:18]} {[%emt 00:01:50]} Bb7 {[%clk 00:50:35]} {[%emt 00:00:27]}
20. Qd2 {[%clk 00:51:40]} {[%emt 00:08:08]} g6 {[%clk 00:47:47]} {[%emt
00:03:17]} 21. Rad1 {[%clk 00:47:43]} {[%emt 00:04:27]} Rad8 {[%clk 00:46:54]}
{[%emt 00:01:23]} 22. Nb4 {[%clk 00:43:35]} {[%emt 00:04:38]} Bg7 {[%clk
00:43:36]} {[%emt 00:03:49]} 23. Ncd5 {[%clk 00:40:38]} {[%emt 00:03:26]} Nxd5
{[%clk 00:29:46]} {[%emt 00:14:19]} 24. cxd5 {[%clk 00:40:22]} {[%emt
00:00:47]} Nb8 {[%clk 00:29:39]} {[%emt 00:00:37]} 25. Rc1 {[%clk 00:33:00]}
{[%emt 00:07:52]} Qd7 {[%clk 00:29:35]} {[%emt 00:00:34]} 26. dxe5 {[%clk
00:32:38]} {[%emt 00:00:53]} dxe5 {[%clk 00:28:51]} {[%emt 00:01:13]} 27. Qe3
{[%clk 00:31:52]} {[%emt 00:01:16]} Qd6 {[%clk 00:27:20]} {[%emt 00:02:01]} 28.
Nc6 {[%clk 00:21:33]} {[%emt 00:10:49]} Nxc6 {[%clk 00:25:49]} {[%emt
00:02:01]} 29. dxc6 {[%clk 00:21:12]} {[%emt 00:00:51]} Bxc6 {[%clk 00:26:00]}
{[%emt 00:00:19]} 30. Qxb6 {[%clk 00:21:34]} {[%emt 00:00:08]} Bxa4 {[%clk
00:25:55]} {[%emt 00:00:35]} 31. Qxa6 {[%clk 00:21:51]} {[%emt 00:00:13]} Qxa6
{[%clk 00:25:35]} {[%emt 00:00:50]} 32. Bxa6 {[%clk 00:22:19]} {[%emt
00:00:02]} Rb8 {[%clk 00:24:54]} {[%emt 00:01:09]} 33. Re2 {[%clk 00:21:25]}
{[%emt 00:01:26]} Bb5 {[%clk 00:25:07]} {[%emt 00:00:16]} 34. Bxb5 {[%clk
00:21:37]} {[%emt 00:00:19]} 1/2-1/2